fUST/lending_fUST_20251009
["ID","MTS","AMOUNT","RATE_DAILY","PERIOD"]
[390033310,1759939843766,-639.46,0.00019451,2]
[390033311,1759939843776,-500.0,0.00019452,2]
[390033312,1759939843786,-500.0,0.00019452,2]
[390033313,1759939843796,-500.0,0.00019452,2]
[390033314,1759939843806,-500.0,0.00019452,2]
[390033315,1759939843816,-500.0,0.00019452,2]
[390033316,1759939843827,-500.0,0.00019452,2]
[390033317,1759939843837,-500.0,0.00019452,2]
[390033318,1759939843846,-900.12,0.00019452,2]
[390033319,1759939843856,-194.11902946,0.00019452,2]
[390033321,1759939843866,-513.76,0.00019452,2]
[390033323,1759939843876,-500.0,0.00019452,2]
[390033325,1759939843886,-2171.27,0.00019452,2]
[390033327,1759939843896,-634.58,0.00019452,2]
[390033328,1759939843906,-500.0,0.00019452,2]
[390033329,1759939843918,-2143.52,0.00019452,2]
[390033330,1759939843929,-500.0,0.00019452,2]
[390033331,1759939843940,-500.0,0.00019452,2]
[390033334,1759939843950,-186.58631058,0.00019452,2]
[390033336,1759939843961,-500.0,0.00019452,2]
[390033337,1759939843970,-500.0,0.00019452,2]
[390033338,1759939843980,-500.0,0.00019452,2]
[390033339,1759939843990,-500.0,0.00019452,2]
[390033340,1759939844000,-313.20664993,0.00019452,2]
[390033341,1759939844011,-523.62,0.00019452,2]
[390033342,1759939844023,-500.0,0.00019452,2]
[390033343,1759939844033,-500.0,0.00019452,2]
[390033344,1759939844043,-1101.92,0.00019452,2]
[390033345,1759939844053,-500.0,0.00019452,2]
[390033346,1759939844063,-500.0,0.00019452,2]
[390033347,1759939844073,-1073.58,0.00019452,2]
[390033348,1759939844083,-547.80012007,0.00019452,2]
[390033349,1759939844095,-817.6,0.00019452,2]
[390033350,1759939844106,-500.0,0.00019452,2]
[390033351,1759939844115,-1099.11,0.00019452,2]
[390033352,1759939844125,-500.0,0.00019452,2]
[390033353,1759939844135,-1019.89,0.00019452,2]
[390033354,1759939844145,-514.03,0.00019452,2]
[390033355,1759939844154,-1488.2,0.00019452,2]
[390033356,1759939844165,-500.0,0.00019452,2]
[390033357,1759939844174,-2624.42,0.00019452,2]
[390033358,1759939844185,-690.84,0.00019452,2]
[390033359,1759939844195,-664.13,0.00019452,2]
[390033360,1759939844205,-500.0,0.00019452,2]
[390033361,1759939844215,-1131.06,0.00019452,2]
[390033362,1759939844225,-500.0,0.00019452,2]
[390033363,1759939844235,-500.0,0.00019452,2]
[390033364,1759939844244,-746.4,0.00019452,2]
[390033365,1759939844254,-160.94009351,0.00019452,2]
[390033366,1759939844264,-296.78570846,0.00019452,2]
[390033367,1759939844274,-1268.5,0.00019452,2]
[390033368,1759939844283,-500.0,0.00019452,2]
[390033369,1759939844293,-1099.17,0.00019452,2]
[390033370,1759939844303,-500.0,0.00019452,2]
[390033371,1759939844312,-1532.09,0.00019452,2]
[390033372,1759939844322,-500.0,0.00019452,2]
[390033373,1759939844332,-500.0,0.00019452,2]
[390033374,1759939844342,-500.0,0.00019452,2]
[390033375,1759939844352,-2456.48,0.00019452,2]
[390033376,1759939844362,-500.0,0.00019452,2]
[390033377,1759939844372,-1589.83,0.00019452,2]
[390033378,1759939844383,-365.34900928,0.00019452,2]
[390033379,1759939844393,-500.0,0.00019452,2]
[390033380,1759939844403,-1306.22,0.00019452,2]
[390033381,1759939844414,-500.00339805,0.00019452,2]
[390033382,1759939844424,-850.41,0.00019452,2]
[390033383,1759939844433,-746.32,0.00019452,2]
[390033384,1759939844688,-460.66035199,0.00019452,2]
[390033385,1759939844698,-500.0,0.00019452,2]
[390033386,1759939844707,-500.0,0.00019452,2]
[390033387,1759939844717,-2750.68,0.00019452,2]
[390033388,1759939844727,-3462.35,0.00019452,2]
[390033389,1759939844737,-597.46,0.00019452,2]
[390033390,1759939844747,-2959.42,0.00019452,2]
[390033391,1759939844757,-2389.24,0.00019452,2]
[390033392,1759939844766,-500.0,0.00019452,2]
[390033393,1759939844776,-1974.2,0.00019452,2]
[390033394,1759939844786,-500.0,0.00019452,2]
[390033395,1759939844796,-781.6,0.00019452,2]
[390033396,1759939844806,-500.0,0.00019452,2]
[390033397,1759939844816,-500.0,0.00019452,2]
[390033398,1759939844826,-500.0,0.00019452,2]
[390033399,1759939844835,-500.0,0.00019452,2]
[390033400,1759939844845,-706.15,0.00019452,2]
[390033401,1759939844854,-500.0,0.00019452,2]
[390033402,1759939844864,-500.0,0.00019452,2]
[390033403,1759939844873,-742.73,0.00019452,2]
[390033404,1759939844883,-500.0,0.00019452,2]
[390033405,1759939844892,-744.56,0.00019452,2]
[390033406,1759939844902,-617.11,0.00019452,2]
[390033407,1759939844911,-489.24661216,0.00019452,2]
[390033408,1759939844921,-500.0,0.00019452,2]
[390033409,1759939844930,-500.0,0.00019452,2]
[390033410,1759939844940,-551.99,0.00019452,2]
[390033411,1759939844949,-500.0,0.00019452,2]
[390033412,1759939844959,-878.53,0.00019452,2]
[390033413,1759939844968,-3616.41,0.00019452,2]
[390033414,1759939844979,-947.14,0.00019452,2]
[390033415,1759939844989,-500.0,0.00019452,2]
[390033416,1759939844999,-500.0,0.00019452,2]
[390033417,1759939845011,-500.0,0.00019452,2]
[390033418,1759939845022,-768.98,0.00019452,2]
[390033419,1759939845031,-844.39,0.00019452,2]
[390033420,1759939845041,-2236.08,0.00019452,2]
[390033421,1759939845050,-500.0,0.00019452,2]
[390033422,1759939845063,-591.74,0.00019452,2]
[390033423,1759939845072,-151.0,0.00019452,7]
[390033424,1759939845083,-546.65,0.00019452,2]
[390033425,1759939845092,-500.0,0.00019452,2]
[390033426,1759939845102,-500.0,0.00019452,2]
[390033427,1759939845111,-797.83,0.00019452,2]
[390033428,1759939845121,-4892.76168486,0.00019452,2]
[390033430,1759939846092,-500.0,0.00019178,2]
[390033431,1759939846102,-375.59919563,0.00019452,2]
[390033548,1759939847438,-500.6,0.00019168,3]
[390033550,1759939847448,-718.68,0.00019178,2]
[390033552,1759939847457,-4331.10911951,0.00019452,2]
[390033553,1759939847466,-623.02,0.00019452,2]
[390033555,1759939847475,-1360.58,0.00019452,2]
[390033557,1759939847484,-500.0,0.00019452,2]
[390033559,1759939847493,-500.0,0.00019452,2]
[390033561,1759939847502,-559.64,0.00019452,2]
[390033563,1759939847512,-151.0,0.00019452,7]
[390033565,1759939847521,-715.28,0.00019452,2]
[390033567,1759939847530,-606.52,0.00019452,2]
[390033569,1759939847540,-500.0,0.00019452,2]
[390033571,1759939847548,-542.14,0.00019452,2]
[390033573,1759939847557,-500.0,0.00019452,2]
[390033575,1759939847566,-22335.74,0.00019452,2]
[390033577,1759939847575,-916.56,0.00019452,2]
[390033579,1759939847584,-538.2,0.00019452,2]
[390033581,1759939847593,-13509.39,0.00019452,2]
[390033583,1759939847602,-500.0,0.00019452,2]
[390033585,1759939847611,-500.0,0.00019452,2]
[390033587,1759939847621,-759.91,0.00019452,2]
[390033589,1759939847630,-1437.63,0.00019452,2]
[390033591,1759939847638,-1844.84,0.00019452,2]
[390033593,1759939847647,-371.93640958,0.00019452,2]
[390033595,1759939847656,-500.0,0.00019452,2]
[390033597,1759939847666,-1911.18,0.00019452,2]
[390033599,1759939847675,-1457.83,0.00019452,2]
[390033601,1759939847684,-719.02,0.00019452,2]
[390033603,1759939847694,-867.94,0.00019452,2]
[390033605,1759939847703,-500.0,0.00019452,2]
[390033607,1759939847712,-500.0,0.00019452,2]
[390033609,1759939847722,-500.0,0.00019452,2]
[390033611,1759939847731,-500.0,0.00019452,2]
[390033613,1759939847741,-2167.49,0.00019452,2]
[390033615,1759939847750,-500.0,0.00019452,2]
[390033617,1759939847759,-500.0,0.00019452,2]
[390033619,1759939847768,-500.0,0.00019452,2]
[390033621,1759939847777,-500.0,0.00019452,2]
[390033623,1759939847786,-2235.83,0.00019452,2]
[390033625,1759939847795,-1545.26,0.00019452,2]
[390033627,1759939847804,-4967.39,0.00019452,2]
[390033629,1759939847813,-1247.36,0.00019452,2]
[390033631,1759939847824,-454.67955993,0.00019452,2]
[390033633,1759939847833,-690.19,0.00019452,2]
[390033635,1759939847843,-500.0,0.00019452,2]
[390033637,1759939847853,-500.0,0.00019452,2]
[390033639,1759939847862,-682.78,0.00019452,2]
[390033640,1759939847871,-500.0,0.00019452,2]
[390033642,1759939847881,-500.0,0.00019452,2]
[390033645,1759939847891,-4674.73,0.00019452,2]
[390033647,1759939847902,-500.0,0.00019452,2]
[390033649,1759939847912,-1912.06,0.00019452,2]
[390033651,1759939847924,-680.45,0.00019452,2]
[390033653,1759939847934,-552.55,0.00019452,2]
[390033655,1759939847944,-1254.37,0.00019452,2]
[390033657,1759939847955,-151.0,0.00019452,7]
[390033659,1759939847966,-151.0,0.00019452,7]
[390033661,1759939847975,-1668.83,0.00019452,2]
[390033663,1759939847986,-500.0,0.00019452,2]
[390033665,1759939847996,-500.0,0.00019452,2]
[390033667,1759939848008,-500.0,0.00019452,2]
[390033669,1759939848020,-4641.5,0.00019452,2]
[390033671,1759939848029,-151.0,0.00019452,7]
[390033673,1759939848039,-816.53,0.00019452,2]
[390033675,1759939848049,-16667.78,0.00019452,2]
[390033677,1759939848059,-1025.11,0.00019452,2]
[390033679,1759939848069,-500.0,0.00019452,2]
[390033681,1759939848079,-1208.27,0.00019452,2]
[390033683,1759939848088,-819.11,0.00019452,2]
[390033685,1759939848098,-4996.41,0.00019452,2]
[390033687,1759939848108,-500.0,0.00019452,2]
[390033689,1759939848119,-587.25,0.00019452,2]
[390033691,1759939848128,-8043.44,0.00019452,2]
[390033693,1759939848138,-500.0,0.00019452,2]
[390033695,1759939848148,-1704.69,0.00019452,2]
[390033697,1759939848157,-2933.67,0.00019452,2]
[390033699,1759939848167,-151.905569,0.00019452,7]
[390033701,1759939848177,-26029.49,0.00019452,2]
[390033703,1759939848187,-861.5,0.00019452,2]
[390033706,1759939848197,-11740.09,0.00019452,2]
[390033708,1759939848207,-500.0,0.00019452,2]
[390033710,1759939848217,-500.0,0.00019452,2]
[390033712,1759939848226,-500.0,0.00019452,2]
[390033714,1759939848235,-500.0,0.00019452,2]
[390033716,1759939848246,-2762.1,0.00019452,2]
[390033717,1759939848255,-1093.64,0.00019452,2]
[390033720,1759939848265,-2110.19,0.00019452,2]
[390033722,1759939848274,-702.66,0.00019452,2]
[390033724,1759939848283,-5077.97,0.00019452,2]
[390033725,1759939848294,-500.0,0.00019452,2]
[390033727,1759939848303,-5693.45,0.00019452,2]
[390033730,1759939848314,-500.0,0.00019452,2]
[390033732,1759939848324,-204.276075,0.00019452,7]
[390033734,1759939848333,-151.0,0.00019452,7]
[390033736,1759939848344,-151.0,0.00019452,7]
[390033738,1759939848355,-500.0,0.00019452,2]
[390033740,1759939848365,-1268.74,0.00019452,2]
[390033742,1759939848375,-151.0,0.00019452,7]
[390033744,1759939848384,-500.0,0.00019452,2]
[390033746,1759939848393,-1833.61,0.00019452,2]
[390033748,1759939848403,-720.9,0.00019452,2]
[390033750,1759939848413,-500.0,0.00019452,2]
[390033752,1759939848423,-1895.27,0.00019452,2]
[390033754,1759939848433,-607.31054771,0.00019452,2]
[390033756,1759939848442,-1098.22,0.00019452,2]
[390033758,1759939848452,-500.0,0.00019452,2]
[390033760,1759939848462,-151.0,0.00019452,7]
[390033762,1759939848472,-206.353848,0.00019452,7]
[390033764,1759939848482,-10314.84,0.00019452,2]
[390033766,1759939848491,-500.0,0.00019452,2]
[390033768,1759939848501,-1313.84,0.00019452,2]
[390033770,1759939848511,-500.0,0.00019452,2]
[390033772,1759939848520,-11938.66,0.00019452,2]
[390033774,1759939848530,-500.0,0.00019452,2]
[390033776,1759939848540,-151.0,0.00019452,7]
[390033778,1759939848549,-151.0,0.00019452,7]
[390033780,1759939848559,-151.0,0.00019452,7]
[390033782,1759939848568,-500.0,0.00019452,2]
[390033784,1759939848579,-151.0,0.00019452,7]
[390033786,1759939848589,-151.0,0.00019452,7]
[390033788,1759939848599,-151.0,0.00019452,7]
[390033790,1759939848609,-151.0,0.00019452,7]
[390033792,1759939848619,-151.0,0.00019452,7]
[390033793,1759939848628,-1642.81,0.00019452,2]
[390033794,1759939848638,-1433.91,0.00019452,2]
[390033796,1759939848648,-151.0,0.00019452,7]
[390033798,1759939848658,-151.0,0.00019452,7]
[390033800,1759939848667,-151.0,0.00019452,7]
[390033802,1759939848677,-151.0,0.00019452,7]
[390033804,1759939848687,-1505.48,0.00019452,2]
[390033806,1759939848696,-151.0,0.00019452,7]
[390033808,1759939848706,-151.0,0.00019452,7]
[390033809,1759939848715,-297.49764,0.00019452,7]
[390033811,1759939848724,-151.0,0.00019452,7]
[390033813,1759939848734,-1217.89,0.00019452,2]
[390033815,1759939848744,-500.0,0.00019452,2]
[390033816,1759939848753,-151.0,0.00019452,7]
[390033818,1759939848763,-151.0,0.00019452,7]
[390033820,1759939848773,-153.338829,0.00019452,7]
[390033822,1759939848782,-151.0,0.00019452,7]
[390033824,1759939848792,-500.85975191,0.00019452,2]
[390033825,1759939848802,-151.0,0.00019452,7]
[390033827,1759939848812,-15918.76,0.00019452,2]
[390033830,1759939848822,-151.0,0.00019452,7]
[390033832,1759939848832,-151.0,0.00019452,7]
[390033834,1759939848842,-500.0,0.00019452,2]
[390033835,1759939848853,-500.0,0.00019452,2]
[390033838,1759939848863,-151.0,0.00019452,7]
[390033839,1759939848872,-151.0,0.00019452,7]
[390033842,1759939848882,-151.0,0.00019452,7]
[390033844,1759939848891,-151.0,0.00019452,7]
[390033845,1759939848901,-151.0,0.00019452,7]
[390033846,1759939848911,-3067.86,0.00019452,2]
[390033847,1759939848922,-1776.87,0.00019452,2]
[390033848,1759939848931,-151.0,0.00019452,7]
[390033849,1759939848942,-151.0,0.00019452,7]
[390033850,1759939848952,-500.0,0.00019452,2]
[390033851,1759939848962,-500.0,0.00019452,2]
[390033852,1759939848971,-500.0,0.00019452,2]
[390033853,1759939848982,-2069.97,0.00019452,2]
[390033854,1759939848991,-864.68,0.00019452,2]
[390033855,1759939849001,-716.3,0.00019452,2]
[390033856,1759939849012,-151.0,0.00019452,7]
[390033857,1759939849025,-666.01,0.00019452,2]
[390033858,1759939849037,-151.0,0.00019452,7]
[390033859,1759939849047,-151.0,0.00019452,7]
[390033860,1759939849060,-151.0,0.00019452,7]
[390033861,1759939849069,-151.0,0.00019452,7]
[390033862,1759939849079,-151.0,0.00019452,7]
[390033863,1759939849089,-504.08,0.00019452,2]
[390033864,1759939849099,-1206.49,0.00019452,2]
[390033865,1759939849109,-500.0,0.00019452,2]
[390033866,1759939849118,-500.0,0.00019452,2]
[390033867,1759939849129,-500.0,0.00019452,2]
[390033868,1759939849139,-1020.19,0.00019452,2]
[390033869,1759939849149,-2470.88,0.00019452,2]
[390033870,1759939849159,-500.0,0.00019452,2]
[390033871,1759939849169,-1341.85,0.00019452,2]
[390033872,1759939849179,-2205.7,0.00019452,2]
[390033873,1759939849189,-500.0,0.00019452,2]
[390033874,1759939849198,-500.0,0.00019452,2]
[390033875,1759939849209,-151.0,0.00019452,7]
[390033876,1759939849218,-151.0,0.00019452,7]
[390033877,1759939849228,-151.0,0.00019452,7]
[390033878,1759939849238,-151.0,0.00019452,7]
[390033879,1759939849248,-500.0,0.00019452,2]
[390033880,1759939849257,-500.0,0.00019452,2]
[390033881,1759939849267,-151.0,0.00019452,7]
[390033882,1759939849277,-151.0,0.00019452,7]
[390033883,1759939849286,-500.0,0.00019452,2]
[390033884,1759939849296,-500.0,0.00019452,2]
[390033885,1759939849307,-500.0,0.00019452,2]
[390033886,1759939849317,-151.0,0.00019452,7]
[390033887,1759939849327,-151.0,0.00019452,7]
[390033888,1759939849337,-3384.71,0.00019452,2]
[390033889,1759939849347,-3577.44,0.00019452,2]
[390033890,1759939849357,-939.55,0.00019452,2]
[390033891,1759939849367,-500.0,0.00019452,2]
[390033892,1759939849377,-6389.11,0.00019452,2]
[390033893,1759939849386,-400.17988562,0.00019452,2]
[390033894,1759939849396,-500.0,0.00019452,2]
[390033895,1759939849406,-151.0,0.00019452,7]
[390033896,1759939849416,-481.40964491,0.00019452,2]
[390033897,1759939849426,-151.0,0.00019452,7]
[390033898,1759939849435,-500.0,0.00019452,2]
[390033899,1759939849445,-500.0,0.00019452,2]
[390033900,1759939849456,-151.0,0.00019452,7]
[390033901,1759939849466,-151.0,0.00019452,7]
[390033902,1759939849475,-1635.45,0.00019452,2]
[390033903,1759939849485,-151.0,0.00019452,7]
[390033904,1759939849495,-7740.04,0.00019452,2]
[390033905,1759939849505,-500.0,0.00019452,2]
[390033906,1759939849515,-10170.23,0.00019452,2]
[390033907,1759939849526,-2642.03,0.00019452,2]
[390033908,1759939849536,-500.0,0.00019452,2]
[390033909,1759939849547,-2282.66,0.00019452,2]
[390033910,1759939849556,-1738.13,0.00019452,2]
[390033911,1759939849566,-5284.57,0.00019452,2]
[390033912,1759939849575,-151.0,0.00019452,7]
[390033913,1759939849585,-151.0,0.00019452,7]
[390033914,1759939849595,-151.0,0.00019452,7]
[390033915,1759939849606,-500.0,0.00019452,2]
[390033916,1759939849616,-4137.56,0.00019452,2]
[390033917,1759939849627,-151.0,0.00019452,7]
[390033918,1759939849637,-151.0,0.00019452,7]
[390033919,1759939849648,-500.0,0.00019452,2]
[390033920,1759939849658,-3863.91,0.00019452,2]
[390033921,1759939849669,-151.0,0.00019452,7]
[390033922,1759939849679,-575.58,0.00019452,2]
[390033923,1759939849689,-500.0,0.00019452,2]
[390033924,1759939849699,-157.77478,0.00019452,7]
[390033925,1759939849709,-500.0,0.00019452,2]
[390033926,1759939849719,-3529.69,0.00019452,2]
[390033927,1759939849730,-151.0,0.00019452,7]
[390033928,1759939849740,-500.0,0.00019452,2]
[390033929,1759939849750,-151.0,0.00019452,7]
[390033930,1759939849760,-500.0,0.00019452,2]
[390033931,1759939849770,-151.0,0.00019452,7]
[390033932,1759939849779,-151.0,0.00019452,7]
[390033933,1759939849789,-500.0,0.00019452,2]
[390033934,1759939849798,-500.0,0.00019452,2]
[390033935,1759939849809,-151.0,0.00019452,7]
[390033936,1759939849819,-2750.83,0.00019452,2]
[390033937,1759939849829,-151.0,0.00019452,7]
[390033938,1759939849839,-151.0,0.00019452,7]
[390033939,1759939849849,-151.0,0.00019452,7]
[390033940,1759939849859,-500.0,0.00019452,2]
[390033941,1759939849869,-500.0,0.00019452,2]
[390033942,1759939849880,-500.0,0.00019452,2]
[390033943,1759939849890,-500.0,0.00019452,2]
[390033944,1759939849900,-500.0,0.00019452,2]
[390033945,1759939849910,-5346.3,0.00019452,2]
[390033946,1759939849922,-500.0,0.00019452,2]
[390033947,1759939849931,-1509.13,0.00019452,2]
[390033948,1759939849941,-500.0,0.00019452,2]
[390033949,1759939849951,-500.0,0.00019452,2]
[390033950,1759939849961,-637.2,0.00019452,2]
[390033951,1759939849972,-755.78,0.00019452,2]
[390033952,1759939849981,-151.0,0.00019452,7]
[390033953,1759939849991,-4412.8,0.00019452,2]
[390033954,1759939850001,-500.0,0.00019452,2]
[390033955,1759939850015,-1613.7,0.00019452,2]
[390033956,1759939850026,-500.0,0.00019452,2]
[390033957,1759939850035,-1850.91,0.00019452,2]
[390033958,1759939850045,-7938.65,0.00019452,2]
[390033959,1759939850056,-1085.04,0.00019452,2]
[390033960,1759939850066,-500.0,0.00019452,2]
[390033961,1759939850076,-500.0,0.00019452,2]
[390033962,1759939850085,-4682.95,0.00019452,2]
[390033963,1759939850097,-3511.75,0.00019452,2]
[390033964,1759939850106,-151.0,0.00019452,7]
[390033965,1759939850116,-830.62,0.00019452,2]
[390033966,1759939850126,-289.379093,0.00019452,7]
[390033967,1759939850135,-5068.32,0.00019452,2]
[390033968,1759939850145,-843.33,0.00019452,2]
[390033969,1759939850155,-1196.84,0.00019452,2]
[390033970,1759939850165,-1953.42,0.00019452,2]
[390033971,1759939850175,-500.0,0.00019452,2]
[390033972,1759939850185,-500.0,0.00019452,2]
[390033973,1759939850194,-3751.78,0.00019452,2]
[390033974,1759939850203,-10393.45,0.00019452,2]
[390033975,1759939850213,-950.58,0.00019452,2]
[390033976,1759939850222,-544.59,0.00019452,2]
[390033977,1759939850231,-500.0,0.00019452,2]
[390033978,1759939850242,-1947.17,0.00019452,2]
[390033979,1759939850251,-151.0,0.00019452,7]
[390033980,1759939850261,-500.0,0.00019452,2]
[390033981,1759939850272,-605.24,0.00019452,2]
[390033982,1759939850283,-12065.52,0.00019452,2]
[390033983,1759939850293,-500.0,0.00019452,2]
[390033984,1759939850304,-500.0,0.00019452,2]
[390033985,1759939850313,-626.226503,0.00019452,7]
[390033986,1759939850323,-626.226503,0.00019452,7]
[390033987,1759939850333,-626.226503,0.00019452,7]
[390033988,1759939850343,-626.226503,0.00019452,7]
[390033989,1759939850354,-626.226503,0.00019452,7]
[390033990,1759939850365,-626.226503,0.00019452,7]
[390033991,1759939850375,-626.226503,0.00019452,7]
[390033992,1759939850385,-626.226503,0.00019452,7]
[390033993,1759939850394,-626.226503,0.00019452,7]
[390033994,1759939850403,-718.68,0.00019452,2]
[390033995,1759939850413,-626.226503,0.00019452,7]
[390033996,1759939850424,-626.226503,0.00019452,7]
[390033997,1759939850433,-13931.35102299,0.00019475,2]
[390033998,1759939850612,-1061.25,0.00019596,2]
[390033999,1759939850621,-500.0,0.00019596,2]
[390034000,1759939850631,-639.46,0.00019596,2]
[390034001,1759939850640,-6659.65225595,0.00019626,2]
[390034002,1759939850649,-500.0,0.00019626,2]
[390034003,1759939850658,-1306.64970348,0.00019628,2]
[390034004,1759939850669,-602.57558036,0.00019646,2]
[390034005,1759939850678,-3000.0,0.0001968,2]
[390034006,1759939850687,-3000.0,0.0001969,2]
[390034007,1759939850697,-500.0,0.00019694,2]
[390034008,1759939850706,-586.13,0.00019694,2]
[390034009,1759939850715,-1061.25,0.00019694,2]
[390034010,1759939850724,-1061.25,0.00019694,2]
[390034011,1759939850733,-151.0,0.00019694,7]
[390034012,1759939850743,-151.0,0.00019694,7]
[390034013,1759939850752,-151.0,0.00019694,7]
[390034014,1759939850761,-151.0,0.00019694,7]
[390034015,1759939850770,-151.0,0.00019694,7]
[390034016,1759939850779,-151.0,0.00019694,7]
[390034017,1759939850788,-500.0,0.00019694,2]
[390034018,1759939850797,-500.0,0.00019694,2]
[390034019,1759939850807,-639.46,0.00019694,2]
[390034020,1759939850816,-639.46,0.00019694,2]
[390034021,1759939850826,-151.0,0.00019695,7]
[390034022,1759939850835,-151.0,0.00019695,7]
[390034023,1759939850844,-151.0,0.00019695,7]
[390034024,1759939850853,-151.0,0.00019695,7]
[390034025,1759939850863,-240.599836,0.00019695,7]
[390034026,1759939850872,-191.84564194,0.00019695,7]
[390034027,1759939850882,-277.785105,0.00019695,7]
[390034028,1759939850891,-151.0,0.00019695,7]
[390034029,1759939850900,-151.0,0.00019695,7]
[390034030,1759939850909,-151.0,0.00019695,7]
[390034031,1759939850919,-151.0,0.00019695,7]
[390034032,1759939850928,-282.483032,0.00019695,7]
[390034033,1759939850937,-33092.97902114,0.00019695,2]
[390034034,1759939850946,-1061.25,0.00019696,2]
[390034035,1759939850956,-1061.25,0.00019696,2]
[390034036,1759939850965,-1061.25,0.00019696,2]
[390034037,1759939850974,-1061.25,0.00019696,2]
[390034038,1759939850983,-1061.25,0.00019696,2]
[390034039,1759939850992,-1061.25,0.00019696,2]
[390034040,1759939851001,-1061.25,0.00019696,2]
[390034041,1759939851015,-1061.25,0.00019696,2]
[390034042,1759939851024,-1061.25,0.00019696,2]
[390034043,1759939851033,-1061.25,0.00019696,2]
[390034044,1759939851043,-1061.25,0.00019696,2]
[390034045,1759939851052,-1061.25,0.00019696,2]
[390034046,1759939851062,-1061.25,0.00019696,2]
[390034047,1759939851071,-753.56768715,0.00019696,2]
[390034048,1759939870051,151.0,0.000181,2]
[390034053,1759939899189,153.566605,0.0002352,30]
[390034055,1759939927999,1000.0,0.00027397,120]
[390034058,1759939951092,200.0,0.00024198,120]
[390034059,1759939963721,156.457857,0.0002352,30]
[390034060,1759940011219,200.0,0.00028585,120]
[390034061,1759940021492,156.457857,0.00024,30]
[390034062,1759940052521,921.0,0.00028767,120]
[390034064,1759940066737,800.0,0.00028767,120]
[390034065,1759940071333,200.0,0.00027691,120]
[390034066,1759940073251,800.0,0.00028767,120]
[390034067,1759940088187,212.62133,0.00028767,120]
[390034068,1759940092610,800.0,0.00028767,120]
[390034069,1759940095602,222.72778541,0.00018146,2]
[390034070,1759940095626,288.82827859,0.00018146,2]
[390034071,1759940098233,800.0,0.00028767,120]
[390034072,1759940102490,800.0,0.00028767,120]
[390034073,1759940107148,800.0,0.00028767,120]
[390034075,1759940131337,200.0,0.00028272,120]
[390034078,1759940183580,834.2644601,0.00018321,2]
[390034079,1759940185360,3333.72078256,0.00018321,2]
[390034080,1759940191408,200.0,0.00027163,120]
[390034081,1759940251721,1000.0,0.00027397,120]
[390034082,1759940321251,156.457857,0.0002352,30]
[390034083,1759940370615,200.0,0.00025509,120]
[390034085,1759940430832,200.0,0.00027145,120]
[390034086,1759940444858,5000.0,0.000183,2]
[390034087,1759940490569,200.0,0.00027309,120]
[390034088,1759940503055,550.0,0.000273,120]
[390034089,1759940546813,176.0,0.00028428,120]
[390034090,1759940551095,200.0,0.00027851,120]
[390034091,1759940564760,156.457857,0.00024,30]